Cogmind - Beta 13 @@@ ROGUE MODE // 2024.04.07 @ 03:27:35 Player: Swagumen Result: Destroyed by G-47 Trooper with Particle Gun Performance ------------- Evolutions (2) 1000 Regions Visited (4) 800 Robots Destroyed (45) 225 Value Destroyed (1423) 1423 Prototype IDs (10) 200 Alien Tech Used (0) 0 Bonus (0) 0 TOTAL SCORE: 3648 Bonus ------- None Cogmind --------- Core Integrity 0/550 Matter 242/300 Energy 100/100 System Corruption 0% Temperature Cool (9) Movement Core (50) Location -8/Materials Parts ------- > --- POWER (2) -------- (None) > --- PROPULSION (4) --- (None) > --- UTILITY (2) ------ Visual Processing Unit Signal Interpreter > --- WEAPON (3) ------- (None) > --- INVENTORY (5) ---- System Shield Peak State ------------ > --- POWER ------------ Light Ion Engine Heavy Ion Engine > --- PROPULSION ------- Aluminum Leg Improved Aluminum Leg Flight Unit Flight Unit > --- UTILITY ---------- Visual Processing Unit Signal Interpreter > --- WEAPON ----------- Particle Gun Improved Assault Rifle Improved Light Cannon > --- INVENTORY -------- System Shield Advanced Beam Cannon Advanced Beam Cannon Grenade Launcher [Rating: 20] Favorites ----------- Power Heavy Ion Engine Engine Heavy Ion Engine Propulsion Aluminum Leg Leg Aluminum Leg Flight Unit Flight Unit Utility Visual Processing Unit Device ECM Suite Processor Visual Processing Unit Weapon Improved Assault Rifle Energy Gun Particle Gun Energy Cannon Advanced Beam Cannon Ballistic Gun Improved Assault Rifle Ballistic Cannon Improved Light Cannon Launcher Grenade Launcher Build | -11 -10 -9 -9 -8 ------- Run | Yrd Mat Mat Min Mat Slots Evolved 4 | . . 2 . 2 Power 1 | . . . . 1 Propulsion 2 | . . 2 . . Utility . | . . . . . Weapon 1 | . . . . 1 Parts Attached 40 | 6 5 10 . 19 Power 7 | 2 1 2 . 2 Engine 7 | 2 1 2 . 2 Core . | . . . . . Reactor . | . . . . . Propulsion 15 | 2 . 3 . 10 Treads . | . . . . . Leg 12 | 2 . 3 . 7 Wheel . | . . . . . Hover . | . . . . . Flight 3 | . . . . 3 Utility 4 | . 4 . . . Device 2 | . 2 . . . Storage . | . . . . . Processor 2 | . 2 . . . Hackware . | . . . . . Protection . | . . . . . Artifact . | . . . . . Weapon 14 | 2 . 5 . 7 Energy Gun 3 | . . 1 . 2 Energy Cannon 2 | . . . . 2 Ballistic Gun 4 | 2 . 2 . . Ballistic Cannon 2 | . . 1 . 1 Launcher 3 | . . 1 . 2 Special Weapon . | . . . . . Impact Weapon . | . . . . . Slashing Weapon . | . . . . . Piercing Weapon . | . . . . . Special Melee Weapon . | . . . . . Unidentified Prototypes 2 | . . 1 . 1 Parts Lost 23 | . 1 2 1 19 Power 3 | . . . . 3 Propulsion 12 | . 1 1 1 9 Utility . | . . . . . Weapon 8 | . . 1 . 7 Highest Loss Streak 12 | . 1 2 1 12 To Critical Strikes . | . . . . . Average Slot Usage (%) 83 | . 93 84 86 77 Engine 13 | . 14 11 11 14 Leg 22 | . 25 32 31 12 Flight 4 | . . . . 10 Device 2 | . 9 . . . Processor 18 | . 14 22 22 18 Energy Gun 3 | . . 7 . 6 Energy Cannon 1 | . . . . 4 Ballistic Gun 12 | . 28 8 11 6 Ballistic Cannon 4 | . . 3 11 4 Naked Turns . | . . . . . Heaviest Build 25 | 8 11 15 15 25 Greatest Support 40 | 20 20 33 33 40 Greatest Overweight (x) 5 | . . . . 5 Average Overweight (x) . | . . . . . Largest Inventory Capacity 5 | 5 5 5 5 5 Average Capacity 5 | 5 5 5 5 5 Most Carried 5 | 2 5 5 5 5 Average Carried 3 | . 4 4 5 3 Final Capacity 5 | 5 5 5 5 5 Final Carried 5 | 2 5 5 5 1 Class Distribution -------------------- 53% | Scavenger-Mutant 28% | Mutant 17% | Scavenger-Skirmisher Dominant Class ---------------- Mutant | -10/Materials Scavenger-Mutant | -9/Materials Scavenger-Mutant | -9/Mines Scavenger-Mutant | -8/Materials Resources | -11 -10 -9 -9 -8 ----------- Run | Yrd Mat Mat Min Mat Matter Collected 1062 | 207 224 199 118 314 Remotely . | . . . . . Salvage Created 1605 | 39 428 158 147 833 Parts 103 | 3 27 13 7 53 Haulers Intercepted . | . . . . . Recyclers Shooed . | . . . . . Parts Field Recycled . | . . . . . Retrieved Matter . | . . . . . Parts Self-Destructed . | . . . . . Prevented . | . . . . . Kills | -11 -10 -9 -9 -8 ------- Run | Yrd Mat Mat Min Mat Combat Hostiles Destroyed 36 | 1 9 4 6 16 Melee 1 | . . . . 1 Guns 21 | 1 9 3 1 7 Cannons 9 | . . . 2 7 AOE 4 | . . 1 3 . Classes Destroyed 10 | 1 2 1 1 5 Worker 2 | . . . . 2 Builder 3 | . . . . 3 Recycler 1 | . . . . 1 Operator 1 | . 1 . . . Watcher 2 | . 1 . . 1 Swarmer 8 | . . . 4 4 Grunt 25 | 1 9 3 2 10 Brawler 1 | . . . . 1 Duelist 1 | . . 1 . . Sentry 1 | . . . . 1 Best Kill Streak 5 | 1 2 3 4 5 Combat Bots Only 4 | 1 2 3 4 4 Max Kills in Single Turn 4 | 1 1 2 4 2 Gunslinging . | . . . . . Exploded 3 | . . 1 3 . Melee 1 | . . . . 1 Uniques/NPCs Destroyed . | . . . . . Combat | -11 -10 -9 -9 -8 -------- Run | Yrd Mat Mat Min Mat Hostile Shots Fired 253 | 5 43 20 23 162 Missed 63 | 2 12 8 6 35 Damage Taken 2947 | 34 399 145 306 2063 Core 703 | 12 50 51 36 554 Absorbed by Shields . | . . . . . Core Remaining (%) 82 | 95 75 . 78 . Volleys Fired 162 | 4 32 29 24 73 Largest 3 | 2 2 2 2 3 Hottest 136 | 40 40 95 62 136 Shots Fired 319 | 8 64 49 48 150 Gun 201 | 8 64 39 24 66 Cannon 113 | . . 9 24 80 Launcher 5 | . . 1 . 4 Special . | . . . . . Kinetic 204 | 8 64 32 48 52 Thermal 110 | . . 16 . 94 Explosive 5 | . . 1 . 4 Electromagnetic . | . . . . . Robot Hit Streak 15 | 4 7 4 6 15 Robot Miss Streak 5 | 1 3 5 3 3 Penetration Max . | . . . . . Secondary Targets 1 | . 1 . . . Max Gunslinging Chain 1 | . 1 . . . Shots Hit Robots 186 | 7 42 15 26 96 Core Hits 89 | 2 22 7 14 44 Critical Kills 2 | . . . . 2 Critical Parts Destroyed 1 | . 1 . . . Critical Strikes 5 | . 1 . . 4 Burn 1 | . . . . 1 Meltdown 1 | . . . . 1 Destroy 2 | . 1 . . 1 Blast 1 | . . . . 1 Melee Attacks . | . . . . . Impact . | . . . . . Slashing . | . . . . . Piercing . | . . . . . Sneak Attacks . | . . . . . Combat Hostiles . | . . . . . Follow-up Attacks . | . . . . . Damage Inflicted 3207 | 74 429 185 660 1859 Guns 1645 | 74 429 161 242 739 Cannons 1240 | . . . 277 963 Explosions 297 | . . 24 141 132 Melee . | . . . . . Ramming 25 | . . . . 25 Kinetic 1615 | 74 429 66 519 527 Thermal 1411 | . . 95 141 1175 Explosive 156 | . . 24 . 132 Electromagnetic . | . . . . . Impact . | . . . . . Slashing . | . . . . . Piercing . | . . . . . Highest Corruption . | . . . . . Average Corruption . | . . . . . Corruption Purged . | . . . . . Corruption Blocked . | . . . . . Overload Shots . | . . . . . Overflow Damage 58 | . . . 27 31 Projectiles 34 | . . . 3 31 Explosions 24 | . . . 24 . Melee . | . . . . . Knockbacks 4 | . . . 2 2 Impact . | . . . . . Kinetic 4 | . . . 2 2 Secondary . | . . . . . Self-Inflicted Damage 180 | . . . 101 79 Shots 5 | . . . 3 2 Rammed 8 | . . . . 8 Targets Rammed 14 | . . . . 14 Kicked 6 | . . . . 6 Crushed . | . . . . . Highest Temperature 609 | 6 48 140 34 609 Average Temperature 140 | 6 16 49 14 172 Received Heat Transfer 1548 | 18 297 66 69 1098 Effects 17 | . . . . 17 Shutdowns 3 | . . . . 3 Energy Bleed 6 | . . . . 6 Interference 4 | . . . . 4 Matter Decay 2 | . . . . 2 Short Circuit 1 | . . . . 1 Damage (core) 1 | . . . . 1 Siege Activations . | . . . . . Robots Corrupted . | . . . . . Combat Hostiles . | . . . . . Parts Fried . | . . . . . Impact Corruptions . | . . . . . Robots Melted 1 | . . . . 1 Combat Hostiles 1 | . . . . 1 Parts Melted 4 | . . . 1 3 Heat Transferred 2777 | . . 222 150 2405 Parts Sabotaged . | . . . . . Parts Stolen . | . . . . . Parts Stripped . | . . . . . Power Chain Reactions . | . . . . . Alert | -11 -10 -9 -9 -8 ------- Run | Yrd Mat Mat Min Mat Peak Influence 312 | 20 249 166 234 312 Initial 91 | . 13 37 64 91 Average 129 | 2 113 129 88 171 Maximum Alert Level 1 | . 1 . 1 1 Low Security (%) 85 | 100 87 100 88 75 Level 1 14 | . 12 . 11 24 Level 2 . | . . . . . Level 3 . | . . . . . Level 4 . | . . . . . Level 5 . | . . . . . High Security . | . . . . . Max Security . | . . . . . Squads Dispatched 5 | . 1 1 . 3 Investigation 2 | . . 1 . 1 Extermination . | . . . . . Reinforcement 2 | . 1 . . 1 Assault . | . . . . . Garrison 1 | . . . . 1 Intercept . | . . . . . Searches Triggered . | . . . . . Construction Impeded . | . . . . . Haulers Reinforced . | . . . . . Active Scanning Responses . | . . . . . Cargo Convoy Interrupts . | . . . . . Stealth | -11 -10 -9 -9 -8 --------- Run | Yrd Mat Mat Min Mat Distress Signals 5 | . . 3 . 2 Communications Jammed . | . . . . . Distress Signals . | . . . . . Times Spotted 64 | 1 13 8 10 32 Peak Tracking Total 7 | 1 2 3 4 7 Tactical Retreats 3 | . 1 . . 2 Traps | -11 -10 -9 -9 -8 ------- Run | Yrd Mat Mat Min Mat Traps Triggered . | . . . . . Indirectly . | . . . . . Trap Hack Attempts . | . . . . . Triggered . | . . . . . Disarmed . | . . . . . Reprogrammed . | . . . . . Reused . | . . . . . Traps Extracted . | . . . . . Installed . | . . . . . Triggered . | . . . . . Machines | -11 -10 -9 -9 -8 ---------- Run | Yrd Mat Mat Min Mat Machines Disabled 10 | . . 1 9 . Max in Single Turn 8 | . . 1 8 . Machines Repaired . | . . . . . Machines Dismantled . | . . . . . Machines Sabotaged . | . . . . . Overloaded Fab Kills . | . . . . . Hacking | -11 -10 -9 -9 -8 --------- Run | Yrd Mat Mat Min Mat Machines Accessed 9 | . 2 3 1 3 Terminals 8 | . 1 3 1 3 Fabricators . | . . . . . Repair Stations . | . . . . . Recycling Units 1 | . 1 . . . Scanalyzers . | . . . . . Garrison Access . | . . . . . Total Hacks 29 | . 9 8 3 9 Successful 23 | . 9 7 2 5 Failed 6 | . . 1 1 4 Catastrophic . | . . . . . Database Lockouts . | . . . . . Manual . | . . . . . Terminals 25 | . 5 8 3 9 Fabricators . | . . . . . Repair Stations . | . . . . . Recycling Units 4 | . 4 . . . Scanalyzers . | . . . . . Garrison Access . | . . . . . Terminal Hacks 19 | . 5 7 2 5 Record 5 | . 2 3 . . Prototype ID Bank 4 | . 1 1 . 2 Branch Access Points 1 | . . 1 . . Alert Level 3 | . 1 1 . 1 Locate Traps 2 | . . . . 2 Dispatch Records 1 | . . . 1 . Registered Components 1 | . 1 . . . Zone Layout 2 | . . 1 1 . Fabricator Hacks . | . . . . . Repair Station Hacks . | . . . . . Recycling Unit Hacks 4 | . 4 . . . Process 2 | . 2 . . . Report Inventory 1 | . 1 . . . Retrieve Components 1 | . 1 . . . Scanalyzer . | . . . . . Garrison Access Hacks . | . . . . . Unauthorized Hacks . | . . . . . Terminals . | . . . . . Fabricators . | . . . . . Repair Stations . | . . . . . Recycling Units . | . . . . . Scanalyzers . | . . . . . Garrison Access . | . . . . . Data Cores Recovered 1 | . 1 . . . Used . | . . . . . Hacking Detections 7 | . 1 2 1 3 Full Trace Events 4 | . 1 2 . 1 Feedback Events . | . . . . . Feedback Blocked . | . . . . . Robot Schematics Acquired . | . . . . . Robots Built . | . . . . . Authchips . | . . . . . Time . | . . . . . Total Robot Build Rating . | . . . . . Part Schematics Acquired . | . . . . . Parts Built . | . . . . . Authchips . | . . . . . Time . | . . . . . Total Part Build Rating . | . . . . . Parts Repaired . | . . . . . Time . | . . . . . Parts Recycled . | . . . . . Recycled Matter 57 | . 57 . . . Retrieved Matter . | . . . . . Retrieved Components . | . . . . . Parts Scanalyzed . | . . . . . Part Schematics Acquired . | . . . . . Parts Damaged . | . . . . . Bothacking | -11 -10 -9 -9 -8 ------------ Run | Yrd Mat Mat Min Mat Used RIF Installer . | . . . . . Robots Hacked . | . . . . . Non-combat . | . . . . . Combat . | . . . . . Robot Hacks Applied . | . . . . . Relay Couplers Released . | . . . . . Fabnet Peak Effective % . | . . . . . Robots Rewired . | . . . . . Allies Hacked . | . . . . . Hacks Repelled . | . . . . . Allies | -11 -10 -9 -9 -8 -------- Run | Yrd Mat Mat Min Mat Total Allies . | . . . . . Largest Group . | . . . . . Highest-Rated Group . | . . . . . Highest-Rated Ally . | . . . . . Total Orders . | . . . . . Ally Attacks . | . . . . . Total Damage . | . . . . . Kills . | . . . . . Allies Corrupted . | . . . . . Allies Melted . | . . . . . Intel | -11 -10 -9 -9 -8 ------- Run | Yrd Mat Mat Min Mat Robot Analysis Total . | . . . . . Derelict Logs Recovered 1 | . . . 1 . Drone Launches . | . . . . . Drone Recoveries . | . . . . . Exploration | -11 -10 -9 -9 -8 ------------- Run | Yrd Mat Mat Min Mat Turns Passed 2477 | 82 536 349 530 980 Spaces Moved 1350 | 56 341 198 369 386 Core 17 | 13 . . . 4 Treads . | . . . . . Legs 1155 | 43 341 198 369 204 Wheels . | . . . . . Hover . | . . . . . Flight 178 | . . . . 178 Fastest Speed 50 | 50 120 120 120 50 Average Speed 122 | 103 120 120 120 130 Slowest Speed 460 | 120 120 120 120 460 Overloaded Moves . | . . . . . Propulsion Burnouts . | . . . . . Robots Hopped . | . . . . . Cave-ins Triggered . | . . . . . Exploration Rate (%) 40 | 6 58 21 72 43 Regions Visited 4 Branch Regions 1 Pre-discovered Areas 1 | . . . 1 . Known Exits Taken 3 | . 1 1 1 . Unknown Exits Taken 1 | 1 . . . . Scrap Searched . | . . . . . Spaces Dug . | . . . . . Terrain Destroyed 83 | . . 7 37 39 Melee . | . . . . . Projectile 5 | . . . 2 3 AOE 78 | . . 7 35 36 Terrain Rammed . | . . . . . Walls Destroyed . | . . . . . Machines Disabled . | . . . . . Actions | -11 -10 -9 -9 -8 --------- Run | Yrd Mat Mat Min Mat Total 1881 | 72 411 263 408 727 Wait 269 | . 19 16 16 218 Move 1346 | 55 340 197 368 386 Hop . | . . . . . Pick Up 35 | 7 10 6 . 12 Fast Attach 3 | . . 1 . 2 Attach 27 | 5 2 5 . 15 Detach 2 | . . 1 . 1 Swap 10 | 1 3 4 . 2 Drop 13 | . 5 4 . 4 Fire 162 | 4 32 29 24 73 Melee . | . . . . . Ram 8 | . . . . 8 Kick 6 | . . . . 6 Crush . | . . . . . Escape Stasis . | . . . . . Rewire . | . . . . . Trap . | . . . . . Miscellaneous . | . . . . . Route ------- -11/Scrapyard -10/Materials (discovered 2 exits: *Mat / *Min) -9/Materials -9/Mines -8/Materials (discovered 2 exits: Fac x2) History --------- Turn | Location | Event 2 | -11/Scrapyard | Met Revision 17 55 | -11/Scrapyard | Discovered new exit (range 8) 83 | -11/Scrapyard | Entered Materials 300 | -10/Materials | Build established: Mutant 433 | -10/Materials | Discovered new exit (range 14) 471 | -10/Materials | Discovered new exit (range 6) 476 | -10/Materials | Identified exit to Mines 617 | -10/Materials | Identified exit to Materials 619 | -10/Materials | Entered another Materials area 619 | -9/Materials | Evolved 2 slots: Propulsion x2 826 | -9/Materials | Identified exit to Mines 874 | -9/Materials | Met 8R-AWN 907 | -9/Materials | Build established: Scavenger-Mutant 968 | -9/Materials | Entered Mines 969 | -9/Mines | Learned location of Storage (-7) 970 | -9/Mines | Followed 8R-AWN into the Mines 1035 | -9/Mines | Assembled infested the area 1040 | -9/Mines | Assisted by a Guerilla fighting off Assembled 1160 | -9/Mines | Learned 4 Materials zone layouts 1356 | -9/Mines | Discovered new exit (range 7) 1365 | -9/Mines | Identified exit to Materials 1498 | -9/Mines | Entered Materials 1498 | -8/Materials | Evolved 2 slots: Power x1, Weapon x1 1499 | -8/Materials | Identified exit to Factory 1804 | -8/Materials | Build established: Scavenger-Skirmisher 2203 | -8/Materials | Lost 3 parts (1p2w) 2344 | -8/Materials | Garrison activated, responded to threat 2418 | -8/Materials | Core integrity fell below 50% 2472 | -8/Materials | Core integrity fell below 20% 2478 | -8/Materials | Destroyed by G-47 Trooper with Particle Gun Last Messages --------------- U-05 Engineer builds a Door. U-05 Engineer builds a Wall. Critical hit (Burn: +37). Slammed into G-47 Trooper. K-01 Serf collects debris. Slammed into G-47 Trooper. U-05 Engineer builds a Wall. Slammed into G-47 Trooper. The unstable cave ceiling collapses. Slammed into G-47 Trooper. G-47 Trooper destroyed. [Achievement: Fist Fight] U-05 Engineer builds a Wall. Acquired 54 matter. U-05 Engineer lays Concrete. [Achievement: First Step to Greatness] The achievement interface (ESC then open Records) offers an effective way to explore all of your earned achievements as well as seek out new goals for future runs. Map ----- +----------------------------------------------------+ | ????????????# #? #???????????????# | | ????####????# #? #???????????????# | | ????# ! ??# # !! #???????????????############# | | ????# #!# !! #???????????????????????????? | | ????#! !!! +=+ ! #???????????????????????????? | | ????# !!! #=########????######?????????????????? | | ????# !! ??#%###########? #?????????????????? | | ????####????#* = # """ #?????????????????? | | ????????????########### # """ #?????????????????? | | #??????????????######## / """ ]#?????????????????? | | ??????????????# # # #?????????????????? | | ??????????????# """ # #] #?????????????????? | | ???????????????# """ # #?######?????????????????? | | ???????????????# """ # #????????????????????????? | | ???????????????# """ + #??#######???? ????????? | | ???????????????# # #??# #???# ????????? | | ???????????????######## #### #???# #???????? | | ???????????????+ #???# #???????? | | ???????????????######## #### #???# +???????? | | ??????????????????????# #??? #???# #???????? | | ??????????????????????# ##### #????# #???????? | | ??????????????????#####u## #????# #???????? | | ?????????????????## =[ !k #????# #?##????? | | ?????????????????# gg *% #????# # #????? | | ?????????????????## #% #????# # ?????? | | ?????????????????# @ # #????# = ??????? | | ?????????????????# ## [## ##???# *%#???????? | | ?????????????????###???##### #???# =#???????? | | ???????????????????????????# #??## ######### | | ???????????????????????????# T #### ! # " | | ???????????????????????????# # """ " | | ???????????????????????????# #### T + """ | | ???????????????????????????## ##??# # """ | | ????????????????????????????# #???# */ # | | ????????????????????????????# #???###/########## | | ????????????????????????????# #??????% ????????? | | ????????????????????????????# #??????] ???????? | | ? #???# ""#??#####+###??# #?????? ??????? | | ?## #???#""S#????# #??# #?????? ?????? | | ??# #####"" ###### ?? ?????? #????? | | ?## ## + ?? #???????T"" #????? | | ?## ## """#### ? ????????""" #????? | | ? # """#??# #?###^#???????? ? #????? | | ? # """#??## ##???#+??????????????????? | | ? + #???# # ???? ??????????????????? | | ? # """#???# # ???????????????????????? | | ? # """#???# + ???????????????????????? | | ?## ## """#???# # ???????????????????????? | | ??# ## #???# # ???????????????????????? | | ??# ##+########???# # ???????????????????????? | +----------------------------------------------------+ Best States ------------- Heat Dissipation 39 Energy Generation 23 Energy Capacity 455 Matter Stores 300 Matter Capacity 300 Sight Range 18 Terrain Scan Density 10 ECM Strength 1 Evasion (%) 55 Item Schematics ----------------- None Robot Schematics ------------------ None Fabricated ------------ Nothing Alien Tech Used ----------------- None Achievements -------------- Crack Shot First Step to Greatness Fist Fight It's Just You Let's See Who's Tougher One Hack Too Far Risk Taker Storm Trooper Troublemaker Uninvited Guest Challenges ------------ None Game ------ Seed RegenerativeHellfireDriver Manual? 0 Play Time 00:47:53 Cumulative 0.7 hours Start 2024.04.07 @ 02:37:24 End 2024.04.07 @ 03:27:35 Sessions 1 Manual Loads 0 Difficulty Rogue Special Mode None Game No. 1 Rogue 1 Adventurer 0 Explorer 0 Win Type - Total 0 Types 0/0/0/0/0/0/0/0/0 Lore% 0 Gallery% 2 Achievement% 3 Wizard Run 0 Options --------- Layout 1 ASCII 0 Keyboard 0 Movement Mouse Keybinds 0 Fullscreen 0 Font 28/CherryShadow Map View 50x35 Zoom Use 0% Tactical HUD 0 Map Filters NONE Filters NONE Steam 1 RUN: 59beba6b-a482-49fb-9121-e3c02a627d2c